fUST/lending_fUST_20251028
["ID","MTS","AMOUNT","RATE_DAILY","PERIOD"]
[392554377,1761656745746,1216.7799265,0.00015677,2]
[392554378,1761656746186,1216.7799265,0.00016005,2]
[392554379,1761656746845,1216.7799265,0.00016337,2]
[392554380,1761656747033,265.770588,0.00016706,2]
[392554381,1761656747055,951.0093385,0.00016706,2]
[392554382,1761656747328,1216.7799265,0.00016852,2]
[392554383,1761656750748,-1216.7799265,0.00017005,2]
[392554515,1761657037752,-306.26435792,0.00017488,2]
[392554516,1761657037761,-5000.0,0.00017503,2]
[392554517,1761657037771,-160.0,0.0001753,2]
[392554518,1761657037781,-1768.3620945,0.00017824,2]
[392554519,1761657037791,-178.0,0.00017878,2]
[392554520,1761657037800,-300.0,0.0001788,2]
[392554521,1761657037810,-300.0,0.0001788,2]
[392554522,1761657037820,-300.0,0.0001788,2]
[392554523,1761657037829,-300.0,0.00017881,2]
[392554524,1761657037839,-300.0,0.00017881,2]
[392554525,1761657037850,-300.0,0.00017881,2]
[392554526,1761657037859,-300.0,0.00017881,2]
[392554527,1761657037869,-300.0,0.00017881,2]
[392554528,1761657037879,-300.0,0.00017881,2]
[392554529,1761657037888,-300.0,0.00017881,2]
[392554530,1761657037898,-300.0,0.00017881,2]
[392554531,1761657037907,-300.0,0.00017881,2]
[392554532,1761657037917,-300.0,0.00017881,2]
[392554533,1761657037928,-300.0,0.00017881,2]
[392554534,1761657037937,-300.0,0.00017881,2]
[392554535,1761657037948,-300.0,0.00017881,2]
[392554536,1761657037957,-300.0,0.00017881,2]
[392554537,1761657037967,-300.0,0.00017881,2]
[392554538,1761657037976,-600.0,0.00017881,2]
[392554539,1761657037986,-214.71533102,0.00017881,2]
[392554540,1761657037995,-999.0,0.00018007,2]
[392554541,1761657038005,-403.6515735,0.00018975,2]
[392554542,1761657038015,-411.82948201,0.00019142,2]
[392554543,1761657038025,-168.0,0.00019152,2]
[392554544,1761657038035,-1217.14410717,0.00019247,2]
[392554545,1761657038045,-500.0,0.00019417,2]
[392554546,1761657038055,-984.0,0.00019418,2]
[392554547,1761657038065,-633.0,0.00019418,2]
[392554548,1761657038075,-2167.0,0.00019418,2]
[392554549,1761657038085,-412.0,0.00019418,2]
[392554550,1761657038095,-361.39194234,0.00019488,2]
[392554551,1761657038105,-420.0,0.00019511,2]
[392554552,1761657038116,-168.0,0.00019638,2]
[392554553,1761657038127,-720.0,0.00019669,2]
[392554554,1761657038137,-1217.14410717,0.00019714,2]
[392554555,1761657038147,-500.0,0.00019831,2]
[392554556,1761657038158,-1217.14410717,0.00019873,2]
[392554557,1761657038167,-154.616,0.00019899,2]
[392554558,1761657038177,-377.71274605,0.00019899,2]
[392554559,1761657038186,-250.29516239,0.00019999,2]
[392554560,1761657038196,-151.0,0.00019999,2]
[392554561,1761657038205,-500.0,0.00019999,2]
[392554562,1761657038215,-500.0,0.00019999,2]
[392554563,1761657038225,-151.93449273,0.00019999,2]
[392554564,1761657038234,-155.78618954,0.00019999,2]
[392554565,1761657038243,-301.58276153,0.00019999,2]
[392554566,1761657038253,-151.0,0.00019999,2]
[392554567,1761657038262,-500.0,0.00019999,2]
[392554568,1761657038272,-303.79029127,0.00019999,2]
[392554569,1761657038282,-500.0,0.00019999,2]
[392554570,1761657038291,-500.0,0.00019999,2]
[392554571,1761657038300,-255.55882831,0.00019999,2]
[392554572,1761657038309,-180.53226819,0.00019999,2]
[392554573,1761657038319,-500.0,0.00019999,2]
[392554574,1761657038328,-500.0,0.00019999,2]
[392554575,1761657038337,-500.0,0.00019999,2]
[392554576,1761657038347,-500.0,0.00019999,2]
[392554577,1761657038356,-500.0,0.00019999,2]
[392554578,1761657038366,-350.0,0.00019999,2]
[392554579,1761657038376,-457.17113513,0.00019999,2]
[392554580,1761657038385,-500.0,0.00019999,2]
[392554581,1761657038395,-500.0,0.00019999,2]
[392554582,1761657038407,-500.0,0.00019999,2]
[392554583,1761657038418,-500.0,0.00019999,2]
[392554584,1761657038427,-315.17868481,0.00019999,2]
[392554585,1761657038437,-500.0,0.00019999,2]
[392554586,1761657038447,-500.0,0.00019999,2]
[392554587,1761657038456,-500.0,0.00019999,2]
[392554588,1761657038465,-24878.17131835,0.0002,2]
[392554627,1761657040226,-0.00348753,0.0002,2]
[392554678,1761657045984,-2841.9898085,0.00018979,2]
[392554679,1761657046081,-1082.65841346,0.0002,2]
[392554680,1761657046097,-4104.04121808,0.0002,2]
[392554681,1761657046107,-483.04052502,0.0002,2]
[392554682,1761657046117,-500.0,0.0002,2]
[392554683,1761657046126,-464.91032953,0.0002,2]
[392554684,1761657046136,-168.0,0.0002002,2]
[392554685,1761657046146,-151.0,0.00020054,2]
[392554686,1761657046155,-165.17908062,0.00020054,2]
[392554687,1761657046165,-168.0,0.00020056,2]
[392554688,1761657046174,-1000.0,0.00020082,2]
[392554689,1761657046184,-151.0,0.00020109,2]
[392554690,1761657046193,-1217.14410717,0.00020144,2]
[392554691,1761657046203,-151.0,0.00020163,2]
[392554692,1761657046212,-168.0,0.00020248,2]
[392554693,1761657046221,-1217.14410717,0.00020401,2]
[392554694,1761657046231,-638.58950342,0.00020403,2]
[392554695,1761657046241,-197.64231026,0.00020533,2]
[392554696,1761657046251,-168.0,0.00020633,2]
[392554697,1761657046259,-1217.14410717,0.00020745,2]
[392554698,1761657046269,-1217.14410717,0.00021068,2]
[392554699,1761657046278,-177.0,0.00021096,3]
[392554700,1761657046287,-1217.14410717,0.00021172,2]
[392554701,1761657046297,-1000.0,0.00021178,2]
[392554702,1761657046306,-346.61,0.00021202,2]
[392554703,1761657046315,-377.71274599,0.00021269,2]
[392554704,1761657046324,-587.0,0.00021292,2]
[392554705,1761657046334,-1217.14410717,0.00021412,2]
[392554706,1761657046343,-500.0,0.00021435,2]
[392554707,1761657046352,-1496.13025237,0.00021458,2]
[392554708,1761657046362,-416.51952677,0.00021488,2]
[392554709,1761657046372,-864.0,0.00021636,20]
[392554710,1761657046383,-1496.13025237,0.00021652,2]
[392554711,1761657046392,-887.03758471,0.00021663,2]
[392554712,1761657046401,-188.3,0.00021667,3]
[392554713,1761657046413,-564.94,0.00021667,3]
[392554714,1761657046423,-22242.69,0.00021677,10]
[392554715,1761657046432,-185.36619986,0.00021686,2]
[392554716,1761657046442,-475.03,0.00021687,3]
[392554717,1761657046453,-500.0,0.00021716,2]
[392554718,1761657046462,-197.64231026,0.00021717,2]
[392554719,1761657046471,-21643.80378307,0.00021717,2]
[392554720,1761657046482,-168.0,0.00021739,2]
[392554721,1761657046491,-1217.14410717,0.00021753,2]
[392554722,1761657046500,-500.0,0.00021765,2]
[392554723,1761657046509,-500.0,0.00021765,2]
[392554724,1761657046518,-441.06201692,0.00021816,2]
[392554725,1761657046528,-370000.0,0.00021817,2]
[392554726,1761657046537,-151.0,0.00021817,2]
[392554727,1761657046547,-151.0,0.00021817,2]
[392554728,1761657046556,-151.0,0.00021817,2]
[392554729,1761657046565,-151.0,0.00021817,2]
[392554730,1761657046575,-267.638987,0.00021817,2]
[392554731,1761657046584,-500.0,0.00021873,2]
[392554732,1761657046593,-500.0,0.00021873,2]
[392554733,1761657046603,-300.0,0.000219,2]
[392554734,1761657046612,-300.0,0.000219,2]
[392554735,1761657046621,-300.0,0.000219,2]
[392554736,1761657046630,-300.0,0.000219,2]
[392554737,1761657046640,-150.186621,0.000219,2]
[392554738,1761657046649,-179.32476462,0.000219,2]
[392554739,1761657046658,-1000.0,0.000219,2]
[392554740,1761657046667,-6019.7539858,0.00021917,2]
[392554741,1761657046677,-500.0,0.00021917,2]
[392554742,1761657046686,-500.0,0.00021917,2]
[392554743,1761657046696,-500.0,0.00021917,2]
[392554744,1761657046705,-500.0,0.00021917,2]
[392554745,1761657046714,-500.0,0.00021917,2]
[392554746,1761657046724,-500.0,0.00021917,2]
[392554747,1761657046733,-710.68,0.00021917,2]
[392554748,1761657046742,-500.0,0.00021917,2]
[392554749,1761657046751,-602.64,0.00021917,2]
[392554750,1761657046761,-500.0,0.00021917,2]
[392554751,1761657046770,-581.8,0.00021917,2]
[392554752,1761657046779,-482.75699534,0.00021917,2]
[392554753,1761657046789,-595.65583211,0.00021917,2]
[392554754,1761657046803,-500.0,0.00021917,2]
[392554755,1761657046813,-500.0,0.00021917,2]
[392554756,1761657046822,-500.0,0.00021917,2]
[392554757,1761657046831,-506.28566998,0.00021917,2]
[392554758,1761657046841,-750.38,0.00021917,2]
[392554759,1761657046850,-500.0,0.00021917,2]
[392554760,1761657046859,-500.0,0.00021917,2]
[392554761,1761657046868,-500.0,0.00021917,2]
[392554762,1761657046878,-500.0,0.00021917,2]
[392554763,1761657046891,-501.59065501,0.00021917,2]
[392554764,1761657046900,-500.52218492,0.00021917,2]
[392554765,1761657046910,-500.0,0.00021917,2]
[392554766,1761657046920,-500.0,0.00021917,2]
[392554767,1761657046929,-279.71013713,0.00021917,2]
[392554768,1761657046938,-500.0,0.00021917,2]
[392554769,1761657046948,-603.92,0.00021917,2]
[392554770,1761657046958,-500.0,0.00021917,2]
[392554771,1761657046968,-507.81,0.00021917,2]
[392554772,1761657046977,-500.0,0.00021917,2]
[392554773,1761657046987,-500.0,0.00021917,2]
[392554774,1761657046997,-500.0,0.00021917,2]
[392554775,1761657047006,-500.0,0.00021917,2]
[392554776,1761657047015,-1000.0,0.00021917,2]
[392554777,1761657047025,-500.0,0.00021917,2]
[392554778,1761657047034,-500.0,0.00021917,2]
[392554779,1761657047043,-500.0,0.00021917,2]
[392554780,1761657047052,-500.0,0.00021917,2]
[392554781,1761657047062,-500.0,0.00021917,2]
[392554782,1761657047071,-500.0,0.00021917,2]
[392554783,1761657047081,-500.0,0.00021917,2]
[392554784,1761657047090,-502.2,0.00021917,2]
[392554785,1761657047099,-490.37693125,0.00021917,2]
[392554786,1761657047109,-500.0,0.00021917,2]
[392554787,1761657047120,-500.0,0.00021917,2]
[392554788,1761657047129,-500.0,0.00021917,2]
[392554789,1761657047139,-500.0,0.00021917,2]
[392554790,1761657047149,-500.0,0.00021917,2]
[392554791,1761657047159,-500.0,0.00021917,2]
[392554792,1761657047168,-962.4,0.00021917,2]
[392554793,1761657047178,-500.0,0.00021917,2]
[392554794,1761657047188,-500.58,0.00021917,2]
[392554795,1761657047197,-500.0,0.00021917,2]
[392554796,1761657047206,-751.7,0.00021917,2]
[392554797,1761657047215,-644.05,0.00021917,2]
[392554798,1761657047224,-500.0,0.00021917,2]
[392554799,1761657047234,-500.3100742,0.00021917,2]
[392554800,1761657047244,-500.0,0.00021917,2]
[392554801,1761657047253,-559.36,0.00021917,2]
[392554802,1761657047262,-1761.71,0.00021917,2]
[392554803,1761657047271,-500.0,0.00021917,2]
[392554804,1761657047280,-1425.95,0.00021917,2]
[392554805,1761657047290,-500.0,0.00021917,2]
[392554806,1761657047298,-500.0,0.00021917,2]
[392554807,1761657047307,-500.0,0.00021917,2]
[392554808,1761657047318,-500.0,0.00021917,2]
[392554809,1761657047327,-500.0,0.00021917,2]
[392554810,1761657047336,-507.16,0.00021917,2]
[392554811,1761657047346,-4394.52,0.00021917,2]
[392554812,1761657047354,-975.14,0.00021917,2]
[392554813,1761657047363,-500.0,0.00021917,2]
[392554814,1761657047372,-500.0,0.00021917,2]
[392554815,1761657047382,-1805.74,0.00021917,2]
[392554816,1761657047391,-500.0,0.00021917,2]
[392554817,1761657047400,-500.0,0.00021917,2]
[392554818,1761657047411,-500.0,0.00021917,2]
[392554819,1761657047422,-500.0,0.00021917,2]
[392554820,1761657047431,-1009.14,0.00021917,2]
[392554821,1761657047440,-500.0,0.00021917,2]
[392554822,1761657047449,-165.75476061,0.00021917,2]
[392554823,1761657047459,-500.0,0.00021917,2]
[392554824,1761657047468,-500.0,0.00021917,2]
[392554825,1761657047477,-500.0,0.00021917,2]
[392554826,1761657047489,-500.0,0.00021917,2]
[392554827,1761657047498,-500.0,0.00021917,2]
[392554828,1761657047507,-500.0,0.00021917,2]
[392554829,1761657047516,-500.0,0.00021917,2]
[392554830,1761657047525,-563.11,0.00021917,2]
[392554831,1761657047534,-501.30878145,0.00021917,2]
[392554832,1761657047543,-500.0,0.00021917,2]
[392554833,1761657047553,-506.25564702,0.00021917,2]
[392554834,1761657047562,-500.0,0.00021917,2]
[392554835,1761657047571,-648.73,0.00021917,2]
[392554836,1761657047581,-500.0,0.00021917,2]
[392554837,1761657047590,-500.0,0.00021917,2]
[392554838,1761657047599,-500.0,0.00021917,2]
[392554839,1761657047609,-500.0,0.00021917,2]
[392554840,1761657047617,-500.0,0.00021917,2]
[392554841,1761657047627,-500.0,0.00021917,2]
[392554842,1761657047636,-818.03,0.00021917,2]
[392554843,1761657047645,-427.54863188,0.00021917,2]
[392554844,1761657047654,-500.0,0.00021917,2]
[392554845,1761657047663,-500.0,0.00021917,2]
[392554846,1761657047673,-500.0,0.00021917,2]
[392554847,1761657047682,-500.0,0.00021917,2]
[392554848,1761657047691,-500.0,0.00021917,2]
[392554849,1761657047700,-500.0,0.00021917,2]
[392554850,1761657047709,-500.0,0.00021917,2]
[392554851,1761657047718,-684.92,0.00021917,2]
[392554852,1761657047727,-500.0,0.00021917,2]
[392554853,1761657047736,-500.0,0.00021917,2]
[392554854,1761657047744,-683.56,0.00021917,2]
[392554855,1761657047754,-500.0,0.00021917,2]
[392554856,1761657047763,-500.0,0.00021917,2]
[392554857,1761657047772,-545.46,0.00021917,2]
[392554858,1761657047782,-500.0,0.00021917,2]
[392554859,1761657047791,-730.37,0.00021917,2]
[392554860,1761657047800,-527.78370219,0.00021917,2]
[392554861,1761657047810,-500.0,0.00021917,2]
[392554862,1761657047820,-500.0,0.00021917,2]
[392554863,1761657047829,-868.54,0.00021917,2]
[392554864,1761657047838,-670.25,0.00021917,2]
[392554865,1761657047847,-500.0,0.00021917,2]
[392554866,1761657047856,-500.0,0.00021917,2]
[392554867,1761657047865,-500.0,0.00021917,2]
[392554868,1761657047874,-500.0,0.00021917,2]
[392554869,1761657047883,-829.55,0.00021917,2]
[392554870,1761657047892,-559.96648976,0.00021917,2]
[392554871,1761657047902,-500.0,0.00021917,2]
[392554872,1761657047911,-500.0,0.00021917,2]
[392554873,1761657047920,-500.0,0.00021917,2]
[392554874,1761657047929,-1532.77,0.00021917,2]
[392554875,1761657047937,-500.0,0.00021917,2]
[392554876,1761657047946,-500.0,0.00021917,2]
[392554877,1761657047956,-283.51004135,0.00021917,2]
[392554878,1761657047965,-651.02,0.00021917,2]
[392554879,1761657047975,-500.0,0.00021917,2]
[392554880,1761657047983,-500.0,0.00021917,2]
[392554881,1761657047992,-708.39,0.00021917,2]
[392554882,1761657048001,-500.0,0.00021917,2]
[392554883,1761657048011,-500.0,0.00021917,2]
[392554884,1761657048020,-500.0,0.00021917,2]
[392554885,1761657048030,-500.0,0.00021917,2]
[392554886,1761657048039,-500.0,0.00021917,2]
[392554887,1761657048048,-500.0,0.00021917,2]
[392554888,1761657048057,-500.0,0.00021917,2]
[392554889,1761657048067,-500.0,0.00021917,2]
[392554890,1761657048077,-500.0,0.00021917,2]
[392554891,1761657048086,-500.0,0.00021917,2]
[392554892,1761657048095,-311.41936244,0.00021917,2]
[392554893,1761657048105,-500.0,0.00021917,2]
[392554894,1761657048114,-500.0,0.00021917,2]
[392554895,1761657048124,-500.0,0.00021917,2]
[392554896,1761657048133,-500.0,0.00021917,2]
[392554897,1761657048142,-1030.21,0.00021917,2]
[392554898,1761657048151,-162.48642541,0.00021917,2]
[392554899,1761657048160,-600.99,0.00021917,2]
[392554900,1761657048169,-500.0,0.00021917,2]
[392554901,1761657048178,-300.98465096,0.00021917,2]
[392554902,1761657048187,-742.27,0.00021917,2]
[392554903,1761657048196,-530.45,0.00021917,2]
[392554904,1761657048205,-500.0,0.00021917,2]
[392554905,1761657048214,-528.00633834,0.00021917,2]
[392554906,1761657048223,-504.41,0.00021917,2]
[392554907,1761657048232,-500.0,0.00021917,2]
[392554908,1761657048241,-500.0,0.00021917,2]
[392554909,1761657048250,-794.07,0.00021917,2]
[392554910,1761657048260,-1069.51,0.00021917,2]
[392554911,1761657048269,-500.0,0.00021917,2]
[392554912,1761657048278,-800.14,0.00021917,2]
[392554913,1761657048287,-553.11,0.00021917,2]
[392554914,1761657048295,-500.0,0.00021917,2]
[392554915,1761657048305,-500.0,0.00021917,2]
[392554916,1761657048314,-1010.99,0.00021917,2]
[392554917,1761657048323,-664.51,0.00021917,2]
[392554918,1761657048332,-500.0,0.00021917,2]
[392554919,1761657048341,-500.0,0.00021917,2]
[392554920,1761657048351,-1368.36,0.00021917,2]
[392554921,1761657048360,-500.0,0.00021917,2]
[392554922,1761657048369,-500.0,0.00021917,2]
[392554923,1761657048378,-500.0,0.00021917,2]
[392554924,1761657048389,-500.0,0.00021917,2]
[392554925,1761657048399,-500.0,0.00021917,2]
[392554926,1761657048411,-767.33,0.00021917,2]
[392554927,1761657048424,-502.14,0.00021917,2]
[392554928,1761657048433,-500.0,0.00021917,2]
[392554929,1761657048441,-500.0,0.00021917,2]
[392554930,1761657048452,-500.0,0.00021917,2]
[392554931,1761657048462,-500.0,0.00021917,2]
[392554932,1761657048471,-500.0,0.00021917,2]
[392554933,1761657048480,-723.67,0.00021917,2]
[392554934,1761657048491,-1366.29,0.00021917,2]
[392554935,1761657048500,-500.0,0.00021917,2]
[392554936,1761657048510,-500.0,0.00021917,2]
[392554937,1761657048519,-555.4,0.00021917,2]
[392554938,1761657048528,-500.0,0.00021917,2]
[392554939,1761657048537,-558.86,0.00021917,2]
[392554940,1761657048546,-500.0,0.00021917,2]
[392554941,1761657048555,-500.0,0.00021917,2]
[392554942,1761657048564,-861.79,0.00021917,2]
[392554943,1761657048574,-500.0,0.00021917,2]
[392554944,1761657048584,-500.0,0.00021917,2]
[392554945,1761657048592,-500.0,0.00021917,2]
[392554946,1761657048601,-614.45,0.00021917,2]
[392554947,1761657048610,-507.87,0.00021917,2]
[392554948,1761657048619,-480.56085877,0.00021917,2]
[392554949,1761657048628,-500.0,0.00021917,2]
[392554950,1761657048639,-889.12,0.00021917,2]
[392554951,1761657048648,-709.01,0.00021917,2]
[392554952,1761657048657,-500.0,0.00021917,2]
[392554953,1761657048673,-500.0,0.00021917,2]
[392554954,1761657048686,-675.73,0.00021917,2]
[392554955,1761657048696,-500.0,0.00021917,2]
[392554956,1761657048706,-500.0,0.00021917,2]
[392554957,1761657048715,-500.0,0.00021917,2]
[392554958,1761657048725,-500.0,0.00021917,2]
[392554959,1761657048734,-500.0,0.00021917,2]
[392554960,1761657048744,-500.0,0.00021917,2]
[392554961,1761657048754,-500.0,0.00021917,2]
[392554962,1761657048763,-500.0,0.00021917,2]
[392554963,1761657048772,-543.82669503,0.00021917,2]
[392554964,1761657048783,-500.0,0.00021917,2]
[392554965,1761657048791,-500.0,0.00021917,2]
[392554966,1761657048801,-500.0,0.00021917,2]
[392554967,1761657048810,-500.95,0.00021917,2]
[392554968,1761657048820,-500.0,0.00021917,2]
[392554969,1761657048829,-500.0,0.00021917,2]
[392554970,1761657048839,-500.0,0.00021917,2]
[392554971,1761657048848,-500.0,0.00021917,2]
[392554972,1761657048857,-517.82637223,0.00021917,2]
[392554973,1761657048867,-500.0,0.00021917,2]
[392554974,1761657048877,-500.0,0.00021917,2]
[392554975,1761657048887,-500.0,0.00021917,2]
[392554976,1761657048897,-608.46,0.00021917,2]
[392554977,1761657048906,-390.06468523,0.00021917,2]
[392554978,1761657048915,-1087.7,0.00021917,2]
[392554979,1761657048924,-500.41327849,0.00021917,2]
[392554980,1761657048934,-500.65912524,0.00021917,2]
[392554981,1761657048943,-500.0,0.00021917,2]
[392554982,1761657048952,-500.0,0.00021917,2]
[392554983,1761657048962,-500.0,0.00021917,2]
[392554984,1761657048971,-1157.83,0.00021917,2]
[392554985,1761657048980,-1469.64,0.00021917,2]
[392554986,1761657048990,-500.0,0.00021917,2]
[392554987,1761657048999,-500.0,0.00021917,2]
[392554988,1761657049008,-515.17445666,0.00021917,2]
[392554989,1761657049018,-500.0,0.00021917,2]
[392554990,1761657049027,-500.0,0.00021917,2]
[392554991,1761657049037,-571.86850352,0.00021917,2]
[392554992,1761657049047,-500.0,0.00021917,2]
[392554993,1761657049056,-1532.05,0.00021917,2]
[392554994,1761657049066,-500.0,0.00021917,2]
[392554995,1761657049076,-500.0,0.00021917,2]
[392554996,1761657049085,-656.29,0.00021917,2]
[392554997,1761657049095,-500.0,0.00021917,2]
[392554998,1761657049104,-500.0,0.00021917,2]
[392554999,1761657049113,-500.0,0.00021917,2]
[392555000,1761657049122,-553.31,0.00021917,2]
[392555001,1761657049132,-413.69056545,0.00021917,2]
[392555002,1761657049141,-1201.89,0.00021917,2]
[392555003,1761657049151,-500.0,0.00021917,2]
[392555004,1761657049161,-500.0,0.00021917,2]
[392555005,1761657049170,-500.0,0.00021917,2]
[392555006,1761657049179,-572.32,0.00021917,2]
[392555007,1761657049188,-500.0,0.00021917,2]
[392555008,1761657049197,-500.0,0.00021917,2]
[392555009,1761657049206,-500.0,0.00021917,2]
[392555010,1761657049216,-500.0,0.00021917,2]
[392555011,1761657049225,-500.0,0.00021917,2]
[392555012,1761657049235,-981.12,0.00021917,2]
[392555013,1761657049244,-1310.52,0.00021917,2]
[392555014,1761657049253,-500.0,0.00021917,2]
[392555015,1761657049263,-500.0,0.00021917,2]
[392555016,1761657049272,-500.0,0.00021917,2]
[392555017,1761657049281,-500.0,0.00021917,2]
[392555018,1761657049290,-489.58498522,0.00021917,2]
[392555019,1761657049299,-500.0,0.00021917,2]
[392555020,1761657049309,-903.76,0.00021917,2]
[392555021,1761657049318,-500.0,0.00021917,2]
[392555022,1761657049328,-1165.96,0.00021917,2]
[392555023,1761657049337,-677.51,0.00021917,2]
[392555024,1761657049347,-500.0,0.00021917,2]
[392555025,1761657049356,-500.0,0.00021917,2]
[392555026,1761657049366,-936.87,0.00021917,2]
[392555027,1761657049375,-500.0,0.00021917,2]
[392555028,1761657049385,-500.0,0.00021917,2]
[392555029,1761657049395,-500.0,0.00021917,2]
[392555030,1761657049405,-500.0,0.00021917,2]
[392555031,1761657049416,-1402.31,0.00021917,2]
[392555032,1761657049426,-500.0,0.00021917,2]
[392555033,1761657049435,-936.52,0.00021917,2]
[392555034,1761657049445,-534.48,0.00021917,2]
[392555035,1761657049455,-500.0,0.00021917,2]
[392555036,1761657049464,-3148.76,0.00021917,2]
[392555037,1761657049473,-1072.47,0.00021917,2]
[392555038,1761657049483,-1445.36,0.00021917,2]
[392555039,1761657049492,-1417.94,0.00021917,2]
[392555040,1761657049502,-500.0,0.00021917,2]
[392555041,1761657049511,-604.42,0.00021917,2]
[392555042,1761657049520,-665.13,0.00021917,2]
[392555043,1761657049530,-1722.02,0.00021917,2]
[392555044,1761657049539,-500.0,0.00021917,2]
[392555045,1761657049548,-611.48830689,0.00021917,2]
[392555046,1761657049557,-3073.45,0.00021917,2]
[392555047,1761657049567,-500.0,0.00021917,2]
[392555048,1761657049576,-661.47,0.00021917,2]
[392555049,1761657049586,-1159.98,0.00021917,2]
[392555050,1761657049595,-741.56,0.00021917,2]
[392555051,1761657049605,-605.07,0.00021917,2]
[392555052,1761657049615,-164.22952978,0.00021917,2]
[392555053,1761657049626,-1316.14,0.00021917,2]
[392555054,1761657049636,-675.01,0.00021917,2]
[392555055,1761657049645,-500.0,0.00021917,2]
[392555056,1761657049655,-500.0,0.00021917,2]
[392555057,1761657049664,-2083.33,0.00021917,2]
[392555058,1761657049674,-6321.35,0.00021917,2]
[392555059,1761657049682,-489.50390959,0.00021917,2]
[392555060,1761657049692,-500.0,0.00021917,2]
[392555061,1761657049701,-690.77,0.00021917,2]
[392555062,1761657049711,-510.77,0.00021917,2]
[392555063,1761657049720,-462.52573967,0.00021917,2]
[392555064,1761657049730,-557.55,0.00021917,2]
[392555065,1761657049740,-511.28,0.00021917,2]
[392555066,1761657049750,-1578.07,0.00021917,2]
[392555067,1761657049760,-500.0,0.00021917,2]
[392555068,1761657049769,-566.79840069,0.00021917,2]
[392555069,1761657049779,-1581.0,0.00021917,2]
[392555070,1761657049789,-500.0,0.00021917,2]
[392555071,1761657049799,-500.0,0.00021917,2]
[392555072,1761657049809,-500.0,0.00021917,2]
[392555073,1761657049819,-151.0,0.00021917,2]
[392555074,1761657049829,-151.0,0.00021917,2]
[392555075,1761657049839,-151.0,0.00021917,2]
[392555076,1761657049849,-151.0,0.00021917,2]
[392555077,1761657049860,-151.0,0.00021917,2]
[392555078,1761657049870,-965.6,0.00021917,2]
[392555079,1761657049879,-151.0,0.00021917,2]
[392555080,1761657049890,-151.0,0.00021917,2]
[392555081,1761657049900,-236.268632,0.00021917,2]
[392555082,1761657049911,-500.0,0.00021917,2]
[392555083,1761657049921,-1097.81,0.00021917,2]
[392555084,1761657049931,-540.18,0.00021917,2]
[392555085,1761657049942,-567.02,0.00021917,2]
[392555086,1761657049952,-500.0,0.00021917,2]
[392555087,1761657049962,-500.0,0.00021917,2]
[392555088,1761657049972,-500.0,0.00021917,2]
[392555089,1761657049982,-227.91644752,0.00021917,2]
[392555090,1761657049993,-500.0,0.00021917,2]
[392555091,1761657050003,-500.0,0.00021917,2]
[392555092,1761657050013,-500.0,0.00021917,2]
[392555093,1761657050024,-500.0,0.00021917,2]
[392555094,1761657050034,-842.65,0.00021917,2]
[392555095,1761657050044,-500.0,0.00021917,2]